fUST/lending_fUST_20251230
["ID","MTS","AMOUNT","RATE_DAILY","PERIOD"]
[400023636,1767033145500,705.68,0.00012344,2]
[400023637,1767033223755,375.64,0.0001102,2]
[400023638,1767033224167,751.28,0.00012022,2]
[400023639,1767033224871,1126.93,0.00013024,2]
[400023640,1767033302456,371.08,0.00011029,2]
[400023641,1767033302874,742.16,0.00012032,2]
[400023642,1767033303290,1113.24,0.00013035,2]
[400023643,1767033382058,342.74,0.0001104,2]
[400023644,1767033382940,685.48,0.00012044,2]
[400023645,1767033383338,1028.23,0.00013047,2]
[400023646,1767033461673,316.57,0.00011093,2]
[400023647,1767033462059,633.14,0.00012101,2]
[400023648,1767033462496,949.71,0.0001311,2]
[400023649,1767033540906,292.39,0.00011094,2]
[400023650,1767033541298,584.79,0.00012102,2]
[400023651,1767033541756,877.18,0.00013111,2]
[400023652,1767033620250,270.07,0.00011104,2]
[400023653,1767033620652,540.13,0.00012113,2]
[400023654,1767033621069,810.2,0.00013123,2]
[400023655,1767033622064,-207.30691018,0.00013173,2]
[400023656,1767033671137,500.0,0.00028493,120]
[400023657,1767033671314,500.0,0.0002863,120]
[400023658,1767033671477,500.0,0.00028767,120]
[400023659,1767033697883,249.44,0.00011097,2]
[400023660,1767033698273,498.89,0.00012106,2]
[400023661,1767033698693,748.33,0.00013115,2]
[400023662,1767033776307,230.39,0.00011092,2]
[400023663,1767033776695,460.79,0.000121,2]
[400023664,1767033777127,691.18,0.00013109,2]
[400023665,1767033855498,212.8,0.00011104,2]
[400023666,1767033855910,425.6,0.00012114,2]
[400023667,1767033856311,638.4,0.00013123,2]
[400023668,1767033934829,196.55,0.00011106,2]
[400023669,1767033935247,393.1,0.00012116,2]
[400023670,1767033935654,589.65,0.00013126,2]
[400023671,1767033951519,-157.52758607,0.00013178,2]
[400023672,1767033953321,-213.57254607,0.00013178,2]
[400023673,1767033957118,-416.60538873,0.00013178,2]
[400023674,1767033959343,-233.64705175,0.00013178,2]
[400023675,1767033962597,-200.63699213,0.00013178,2]
[400023676,1767033965980,-237.99424405,0.00013178,2]
[400023677,1767033969062,-300.0,0.00013178,2]
[400023678,1767033973641,-445.26019339,0.00013178,2]
[400023679,1767033975769,-575.51416669,0.00013178,2]
[400023680,1767034003686,999.0,0.00013146,2]
[400023681,1767034013336,181.54,0.00011118,2]
[400023682,1767034013813,363.08,0.00012129,2]
[400023683,1767034014221,544.62,0.0001314,2]
[400023684,1767034092632,167.68,0.00011034,2]
[400023685,1767034093062,335.36,0.00012037,2]
[400023686,1767034093452,503.03,0.0001304,2]
[400023687,1767034134383,3391.4962741,0.00012832,2]
[400023688,1767034173356,154.87,0.00011037,2]
[400023689,1767034173798,309.75,0.0001204,2]
[400023690,1767034174212,464.62,0.00013043,2]
[400023723,1767034231841,-79.59552042,0.00013178,2]
[400023724,1767034231851,-150.28193846,0.00013225,2]
[400023725,1767034231860,-300.0,0.00013272,2]
[400023726,1767034231870,-300.0,0.00013272,2]
[400023727,1767034231879,-500.0,0.00013273,2]
[400023728,1767034231889,-500.0,0.00013273,2]
[400023729,1767034231898,-500.0,0.00013273,2]
[400023730,1767034231907,-500.0,0.00013273,2]
[400023731,1767034231916,-500.0,0.00013273,2]
[400023732,1767034231927,-500.0,0.00013273,2]
[400023733,1767034231936,-300.0,0.00013673,2]
[400023734,1767034231946,-2280.2432765,0.00013673,2]
[400023735,1767034231955,-593.17280358,0.00013699,2]
[400023736,1767034231969,-664.14982142,0.00013699,2]
[400023738,1767034231978,-80.75858867,0.00013699,2]
[400023740,1767034231994,-503.63330533,0.00013699,2]
[400023742,1767034232003,-500.0,0.00013699,2]
[400023744,1767034232012,-13.09543539,0.00013699,2]
[400023746,1767034232024,-486.90456461,0.00013699,2]
[400023748,1767034232033,-500.0,0.00013699,2]
[400023749,1767034232043,-215.96285583,0.00013699,2]
[400023750,1767034232052,-500.0,0.00013699,2]
[400023751,1767034232062,-500.0,0.00013699,2]
[400023752,1767034232071,-500.0,0.00013699,2]
[400023753,1767034232081,-500.0,0.00013699,2]
[400023754,1767034232091,-500.0,0.00013699,2]
[400023755,1767034232100,-1000.0,0.00013821,2]
[400023756,1767034232115,-1000.0,0.00013821,2]
[400023757,1767034232125,-1000.0,0.00013821,2]
[400023758,1767034232134,-1000.0,0.00013821,2]
[400023759,1767034232143,-1000.0,0.00013821,2]
[400023760,1767034232153,-1000.0,0.00013821,2]
[400023761,1767034232163,-619.49,0.00014047,2]
[400023762,1767034232174,-600.0,0.00014221,2]
[400023763,1767034232187,-1000.0,0.00014247,2]
[400023764,1767034232197,-1000.0,0.00014247,2]
[400023765,1767034232207,-1000.0,0.00014247,2]
[400023766,1767034232217,-1000.0,0.00014247,2]
[400023767,1767034232228,-1000.0,0.00014247,2]
[400023768,1767034232238,-1000.0,0.00014247,2]
[400023769,1767034232247,-945.83984439,0.00014247,2]
[400023770,1767034232256,-1000.0,0.00014247,2]
[400023771,1767034232265,-500.0,0.00014368,2]
[400023772,1767034232275,-1000.0,0.00014368,2]
[400023773,1767034232284,-1234.52490858,0.00014368,2]
[400023774,1767034232293,-1002.59526529,0.00014368,2]
[400023775,1767034232302,-1500.0,0.00014368,2]
[400023776,1767034232311,-1000.0,0.00014368,2]
[400023777,1767034232320,-534.07467017,0.00014508,2]
[400023778,1767034232330,-300.0,0.00014768,2]
[400023779,1767034232339,-1500.0,0.00014795,2]
[400023780,1767034232348,-500.0,0.00014795,2]
[400023781,1767034232357,-1500.0,0.00014795,2]
[400023782,1767034232367,-1500.0,0.00014795,2]
[400023783,1767034232376,-1223.9947484,0.00014916,2]
[400023784,1767034232386,-774.37,0.0001505,2]
[400023785,1767034232395,-800.0,0.00015068,2]
[400023786,1767034232404,-177.33268738,0.00015225,2]
[400023787,1767034232413,-2000.0,0.00015342,2]
[400023788,1767034232423,-1000.0,0.000157,2]
[400023789,1767034232435,-279.38429669,0.00015753,2]
[400023790,1767034232444,-2500.0,0.0001589,2]
[400023791,1767034232454,-500.0,0.00016029,2]
[400023792,1767034232464,-929.24,0.00016053,2]
[400023793,1767034232474,-1600.0,0.00016164,2]
[400023794,1767034232483,-500.0,0.00016437,2]
[400023795,1767034232493,-305.77,0.00016438,2]
[400023796,1767034232503,-1500.0,0.00016438,2]
[400023797,1767034232512,-200.0,0.00016473,2]
[400023798,1767034232521,-160.0,0.000165,2]
[400023799,1767034232531,-210.7158642,0.00016604,2]
[400023800,1767034232540,-305.77,0.00016712,2]
[400023801,1767034232550,-305.78,0.00016986,2]
[400023802,1767034232559,-260.0,0.00017048,2]
[400023803,1767034232569,-1084.12,0.00017057,2]
[400023804,1767034232578,-204.38343631,0.00017225,2]
[400023805,1767034232587,-284.56295933,0.0001726,2]
[400023806,1767034232597,-520.0,0.00017596,2]
[400023807,1767034232607,-250.0,0.00017615,2]
[400023808,1767034232616,-191.42505891,0.00017905,2]
[400023809,1767034232625,-163.0,0.00017932,2]
[400023810,1767034232635,-1238.99,0.0001806,2]
[400023811,1767034232643,-250.3,0.00018878,2]
[400023812,1767034232653,-1393.86,0.00019063,2]
[400023813,1767034232662,-231.43418523,0.00019225,2]
[400023814,1767034232672,-320.38571976,0.00019426,2]
[400023815,1767034232681,-765.70023566,0.0001943,2]
[400023816,1767034232691,-250.3,0.00019707,2]
[400023817,1767034232700,-1548.74,0.00020067,2]
[400023818,1767034232709,-279.38429669,0.00020198,2]
[400023819,1767034232718,-500.0,0.00020495,2]
[400023820,1767034232727,-250.3,0.00020537,2]
[400023821,1767034232736,-1257.322625,0.00020548,2]
[400023822,1767034232745,-576.69429557,0.00020944,2]
[400023823,1767034232754,-1722.82553023,0.00020955,2]
[400023824,1767034232763,-258.48493415,0.00021225,2]
[400023825,1767034232772,-250.3,0.00021366,2]
[400023826,1767034232781,-207.15357246,0.00021624,5]
[400023827,1767034232791,-500.0,0.00021818,2]
[400023828,1767034232800,-500.0,0.00021869,2]
[400023829,1767034232809,-514.84070869,0.00021872,2]
[400023830,1767034232818,-500.0,0.00021872,2]
[400023831,1767034232827,-500.0,0.00021872,2]
[400023832,1767034232836,-500.0,0.00021872,2]
[400023833,1767034232846,-500.0,0.00021872,2]
[400023834,1767034232855,-250.0,0.00021872,2]
[400023835,1767034232865,-548.34469326,0.00021872,2]
[400023836,1767034232875,-2487.15318209,0.00021872,2]
[400023837,1767034232884,-6723.12,0.00021897,10]
[400023838,1767034232893,-1169.10973081,0.000219,2]
[400023839,1767034232902,-8067.75,0.00021907,10]
[400023840,1767034232912,-500.0,0.00021917,2]
[400023841,1767034232921,-500.0,0.00021917,2]
[400023842,1767034232931,-500.0,0.00021917,2]
[400023843,1767034232940,-500.0,0.00021917,2]
[400023844,1767034232950,-503.45367287,0.00021917,2]
[400023845,1767034232960,-500.0,0.00021917,2]
[400023846,1767034232970,-500.0,0.00021917,2]
[400023847,1767034232979,-1000.0,0.00021917,2]
[400023848,1767034232989,-500.0,0.00021917,2]
[400023849,1767034232999,-500.0,0.00021917,2]
[400023850,1767034233009,-500.0,0.00021917,2]
[400023851,1767034233018,-552.91811867,0.00021917,2]
[400023852,1767034233028,-500.0,0.00021917,2]
[400023853,1767034233038,-939.52,0.00021917,2]
[400023854,1767034233047,-500.0,0.00021917,2]
[400023855,1767034233056,-500.0,0.00021917,2]
[400023856,1767034233066,-500.0,0.00021917,2]
[400023857,1767034233076,-500.0,0.00021917,2]
[400023858,1767034233085,-500.0,0.00021917,2]
[400023859,1767034233095,-500.0,0.00021917,2]
[400023860,1767034233106,-5143.59,0.00021917,2]
[400023861,1767034233117,-505.65281298,0.00021917,2]
[400023862,1767034233127,-500.0,0.00021917,2]
[400023863,1767034233136,-500.0,0.00021917,2]
[400023864,1767034233147,-973.05,0.00021917,2]
[400023865,1767034233294,-895.41,0.00021917,2]
[400023866,1767034233304,-500.0,0.00021917,2]
[400023867,1767034233313,-500.0,0.00021917,2]
[400023868,1767034233322,-500.0,0.00021917,2]
[400023869,1767034233332,-500.0,0.00021917,2]
[400023870,1767034233341,-500.0,0.00021917,2]
[400023871,1767034233352,-500.0,0.00021917,2]
[400023872,1767034233361,-500.0,0.00021917,2]
[400023873,1767034233370,-500.0,0.00021917,2]
[400023874,1767034233380,-625.33,0.00021917,2]
[400023875,1767034233390,-1043.74,0.00021917,2]
[400023876,1767034233401,-500.0,0.00021917,2]
[400023877,1767034233410,-1000.0,0.00021917,2]
[400023878,1767034233420,-1152.39,0.00021917,2]
[400023879,1767034233430,-500.0,0.00021954,2]
[400023880,1767034233439,-66518.13254085,0.00022,2]
[400023888,1767034237887,-500.0,0.00013819,2]
[400023889,1767034237898,-500.0,0.00013819,2]
[400023890,1767034237908,-500.0,0.00013819,2]
[400023891,1767034237919,-172.66572627,0.00013819,2]
[400023892,1767034237928,-500.0,0.00013819,2]
[400023893,1767034237937,-500.0,0.00016438,2]
[400023894,1767034237947,-500.0,0.00016438,2]
[400023895,1767034237956,-500.0,0.00016438,2]
[400023896,1767034237967,-500.0,0.00016438,2]
[400023897,1767034237976,-500.0,0.00016438,2]
[400023898,1767034237985,-500.0,0.00016438,2]
[400023899,1767034237995,-500.0,0.00016438,2]
[400023900,1767034238005,-500.0,0.00016438,2]
[400023901,1767034238014,-500.0,0.00016438,2]
[400023902,1767034238023,-500.0,0.00016438,2]
[400023904,1767034238033,-500.0,0.00016438,2]
[400023906,1767034238042,-500.0,0.00016438,2]
[400023908,1767034238051,-500.0,0.00016438,2]
[400023909,1767034238060,-500.0,0.00016438,2]
[400023910,1767034238070,-500.0,0.00016438,2]
[400023911,1767034238079,-500.0,0.00016438,2]
[400023912,1767034238088,-500.0,0.00016438,2]
[400023913,1767034238097,-500.0,0.00016438,2]
[400023914,1767034238112,-500.0,0.00016438,2]
[400023915,1767034238123,-500.0,0.00016438,2]
[400023916,1767034238132,-500.0,0.00016438,2]
[400023917,1767034238142,-500.0,0.00016438,2]
[400023918,1767034238153,-500.0,0.00016438,2]
[400023919,1767034238163,-500.0,0.00016438,2]
[400023920,1767034238174,-500.0,0.00016438,2]
[400023921,1767034238186,-500.0,0.00016438,2]
[400023922,1767034238196,-500.0,0.00016438,2]
[400023923,1767034238206,-500.0,0.00016438,2]
[400023924,1767034238217,-500.0,0.00016438,2]
[400023925,1767034238228,-4528.95062946,0.00022,2]
[400023926,1767034238238,-1886.06,0.00022,7]
[400023927,1767034238248,-2398.71,0.00022,14]
[400023928,1767034238258,-163.76,0.00022,7]
[400023929,1767034238267,-157.68,0.00022,7]
[400023930,1767034238276,-458.0,0.00022,2]
[400023931,1767034238286,-500.0,0.00022191,2]
[400023932,1767034238295,-500.0,0.00022191,2]
[400023933,1767034238304,-500.0,0.00022191,2]
[400023934,1767034238313,-500.0,0.00022191,2]
[400023935,1767034238323,-500.0,0.00022191,2]
[400023936,1767034238332,-1000.0,0.00022191,2]
[400023937,1767034238351,-500.0,0.00022191,2]
[400023938,1767034238363,-552.91811867,0.00022191,2]
[400023939,1767034238373,-939.52,0.00022191,2]
[400023940,1767034238383,-500.0,0.00022191,2]
[400023941,1767034238393,-500.0,0.00022191,2]
[400023942,1767034238404,-500.0,0.00022191,2]
[400023943,1767034238414,-5143.59,0.00022191,2]
[400023944,1767034238424,-500.0,0.00022191,2]
[400023945,1767034238435,-500.0,0.00022191,2]
[400023946,1767034238444,-973.05,0.00022191,2]
[400023947,1767034238454,-895.41,0.00022191,2]
[400023948,1767034238464,-500.0,0.00022191,2]
[400023949,1767034238474,-500.0,0.00022191,2]
[400023950,1767034238484,-500.0,0.00022191,2]
[400023951,1767034238494,-500.0,0.00022191,2]
[400023952,1767034238505,-500.0,0.00022191,2]
[400023953,1767034238515,-500.0,0.00022191,2]
[400023954,1767034238525,-500.0,0.00022191,2]
[400023955,1767034238534,-625.33,0.00022191,2]
[400023956,1767034238544,-1043.74,0.00022191,2]
[400023957,1767034238554,-500.0,0.00022191,2]
[400023958,1767034238564,-1000.0,0.00022191,2]
[400023959,1767034238573,-1152.39,0.00022191,2]
[400023960,1767034238583,-458.0,0.00022192,7]
[400023961,1767034238593,-250.3,0.00022195,2]
[400023962,1767034238603,-500.0,0.00022363,2]
[400023963,1767034238613,-500.0,0.00022375,2]
[400023964,1767034238622,-533.88981491,0.0002242,2]
[400023965,1767034238632,-2579.17784983,0.0002242,2]
[400023966,1767034238641,-1169.1097308,0.00022436,2]
[400023967,1767034238651,-1025.23430323,0.00022461,2]
[400023968,1767034238660,-500.0,0.00022465,2]
[400023969,1767034238670,-500.0,0.00022465,2]
[400023970,1767034238680,-500.0,0.00022465,2]
[400023971,1767034238690,-500.0,0.00022465,2]
[400023972,1767034238699,-500.0,0.00022465,2]
[400023973,1767034238709,-1000.0,0.00022465,2]
[400023974,1767034238719,-500.0,0.00022465,2]
[400023975,1767034238729,-552.91811867,0.00022465,2]
[400023976,1767034238739,-939.52,0.00022465,2]
[400023977,1767034238749,-500.0,0.00022465,2]
[400023978,1767034238759,-302.59549806,0.00022465,2]
[400023979,1767034238769,-5143.59,0.00022465,2]
[400023980,1767034238779,-500.0,0.00022465,2]
[400023981,1767034238789,-500.0,0.00022465,2]
[400023982,1767034238798,-973.05,0.00022465,2]
[400023983,1767034238808,-895.41,0.00022465,2]
[400023984,1767034238818,-500.0,0.00022465,2]
[400023985,1767034238828,-500.0,0.00022465,2]
[400023986,1767034238837,-500.0,0.00022465,2]
[400023987,1767034238847,-500.0,0.00022465,2]
[400023988,1767034238857,-500.0,0.00022465,2]
[400023989,1767034238867,-500.0,0.00022465,2]
[400023990,1767034238876,-500.0,0.00022465,2]
[400023991,1767034238886,-625.33,0.00022465,2]
[400023992,1767034238896,-1043.74,0.00022465,2]
[400023993,1767034238905,-500.0,0.00022465,2]
[400023994,1767034238915,-1000.0,0.00022465,2]
[400023995,1767034238925,-1152.39,0.00022465,2]
[400023996,1767034238935,-3062.80094264,0.0002248,2]
[400023997,1767034238945,-500.0,0.00022586,2]
[400023998,1767034238954,-500.0,0.00022739,2]
[400023999,1767034238964,-500.0,0.00022739,2]
[400024000,1767034238974,-500.0,0.00022739,2]
[400024001,1767034238984,-500.0,0.00022739,2]
[400024002,1767034238994,-1000.0,0.00022739,2]
[400024003,1767034239004,-500.0,0.00022739,2]
[400024004,1767034239014,-552.91811867,0.00022739,2]
[400024005,1767034239024,-939.52,0.00022739,2]
[400024006,1767034239038,-500.0,0.00022739,2]
[400024007,1767034239048,-5143.59,0.00022739,2]
[400024008,1767034239058,-500.0,0.00022739,2]
[400024009,1767034239067,-500.0,0.00022739,2]
[400024010,1767034239077,-973.05,0.00022739,2]
[400024011,1767034239086,-895.41,0.00022739,2]
[400024012,1767034239095,-500.0,0.00022739,2]
[400024013,1767034239107,-265.26923649,0.00022739,2]
[400024014,1767034239122,-234.73076351,0.00022739,2]
[400024015,1767034239131,-500.0,0.00022739,2]
[400024016,1767034239140,-500.0,0.00022739,2]
[400024017,1767034239150,-500.0,0.00022739,2]
[400024018,1767034239161,-500.0,0.00022739,2]
[400024019,1767034239170,-625.33,0.00022739,2]
[400024020,1767034239180,-1043.74,0.00022739,2]
[400024021,1767034239191,-500.0,0.00022739,2]
[400024022,1767034239200,-1000.0,0.00022739,2]
[400024023,1767034239209,-1152.39,0.00022739,2]
[400024024,1767034239219,-500.0,0.00022772,2]
[400024025,1767034239228,-500.0,0.00022808,2]
[400024026,1767034239238,-340.15750328,0.00022844,5]
[400024027,1767034239247,-605.76151831,0.00022844,5]
[400024028,1767034239259,-696.46230677,0.00022844,5]
[400024029,1767034239268,-500.0,0.00022873,2]
[400024030,1767034239277,-500.0,0.00022966,2]
[400024031,1767034239286,-553.64373807,0.00022968,2]
[400024032,1767034239296,-2674.60743027,0.00022968,2]
[400024033,1767034239305,-1169.1097308,0.00022971,2]
[400024034,1767034239315,-26477.08541896,0.0002299,2]
[400024035,1767034239324,-151.0,0.0002299,2]
[400024036,1767034239333,-151.0,0.0002299,2]
[400024037,1767034239343,-151.0,0.0002299,2]
[400024038,1767034239352,-151.0,0.0002299,2]
[400024039,1767034239363,-161.203789,0.0002299,2]
[400024040,1767034239372,-168.0,0.00022991,2]
[400024041,1767034239382,-500.0,0.00023013,2]
[400024042,1767034239392,-500.0,0.00023013,2]
[400024043,1767034239401,-500.0,0.00023013,2]
[400024044,1767034239411,-500.0,0.00023013,2]
[400024045,1767034239420,-552.91811867,0.00023013,2]
[400024046,1767034239430,-939.52,0.00023013,2]
[400024048,1767034239440,-244.498218,0.00023013,2]
[400024050,1767034239450,-244.498218,0.00023013,2]
[400024052,1767034239460,-244.498218,0.00023013,2]
[400024054,1767034239470,-244.498218,0.00023013,2]
[400024056,1767034239481,-151.0,0.00023013,2]
[400024057,1767034239490,-151.0,0.00023013,2]
[400024058,1767034239500,-260.33084973,0.00023013,2]
[400024059,1767034239510,-500.0,0.00023013,2]
[400024060,1767034239523,-475.0,0.00023013,7]
[400024061,1767034239533,-5143.59,0.00023013,2]
[400024062,1767034239544,-500.0,0.00023013,2]
[400024063,1767034239554,-500.0,0.00023013,2]
[400024064,1767034239565,-973.05,0.00023013,2]
[400024065,1767034239575,-895.41,0.00023013,2]
[400024066,1767034239585,-500.0,0.00023013,2]
[400024067,1767034239595,-500.0,0.00023013,2]
[400024068,1767034239605,-500.0,0.00023013,2]
[400024069,1767034239615,-500.0,0.00023013,2]
[400024070,1767034239625,-500.0,0.00023013,2]
[400024071,1767034239634,-500.0,0.00023013,2]
[400024072,1767034239644,-625.33,0.00023013,2]
[400024073,1767034239654,-1043.74,0.00023013,2]
[400024074,1767034239663,-500.1154927,0.00023013,2]
[400024075,1767034239672,-1152.39,0.00023013,2]
[400024077,1767034239682,-458.0,0.00023014,7]
[400024078,1767034239692,-250.3,0.00023024,2]
[400024079,1767034239702,-6470.3252378,0.00023036,2]
[400024080,1767034239711,-500.0,0.0002304,2]
[400024081,1767034239721,-500.0,0.0002305,2]
[400024083,1767034239730,-500.0,0.00023097,2]
[400024084,1767034239740,-2398.71,0.000231,14]
[400024085,1767034239749,-487.1471928,0.00023132,5]
[400024086,1767034239758,-1886.06,0.000232,7]
[400024087,1767034239767,-285.53568308,0.00023225,2]
[400024088,1767034239777,-1973.55132122,0.00023261,2]
[400024090,1767034239786,-500.0,0.00023287,2]
[400024092,1767034239795,-500.0,0.00023287,2]
[400024094,1767034239805,-500.0,0.00023287,2]
[400024095,1767034239814,-500.0,0.00023287,2]
[400024097,1767034239824,-552.91811867,0.00023287,2]
[400024098,1767034239833,-151.88974,0.00023287,2]
[400024100,1767034239843,-939.52,0.00023287,2]
[400024102,1767034239852,-500.0,0.00023287,2]
[400024103,1767034239864,-151.0,0.00023287,2]
[400024104,1767034239876,-5143.59,0.00023287,2]
[400024105,1767034239887,-500.0,0.00023287,2]
[400024106,1767034239897,-500.0,0.00023287,2]
[400024107,1767034239907,-973.05,0.00023287,2]
[400024108,1767034239916,-895.41,0.00023287,2]
[400024109,1767034239926,-644.82123298,0.00023287,2]
[400024110,1767034239935,-500.0,0.00023287,2]
[400024111,1767034239945,-500.0,0.00023287,2]
[400024112,1767034239955,-500.0,0.00023287,2]
[400024113,1767034239965,-500.0,0.00023287,2]
[400024114,1767034239974,-625.33,0.00023287,2]
[400024115,1767034239984,-1043.74,0.00023287,2]
[400024116,1767034239993,-1152.39,0.00023287,2]
[400024117,1767034240003,-151.0,0.000235,5]
[400024118,1767034240012,-1169.1097308,0.00023507,2]
[400024119,1767034240022,-574.12855637,0.00023516,2]
[400024120,1767034240032,-2773.56790519,0.00023516,2]
[400024121,1767034240042,-3711.48660791,0.00023518,2]
[400024122,1767034240051,-175.37330018,0.00023533,3]
[400024123,1767034240061,-508.35872016,0.0002355,5]
[400024124,1767034240071,-515.88102004,0.0002356,2]
[400024125,1767034240082,-928.58583607,0.0002356,2]
[400024126,1767034240091,-1650.81926412,0.0002356,2]
[400024128,1767034240102,-377.3132006,0.0002356,2]
[400024129,1767034240115,-431.2150864,0.0002356,2]
[400024130,1767034240125,-151.0,0.0002356,2]
[400024131,1767034240135,-151.0,0.0002356,2]
[400024132,1767034240144,-151.0,0.0002356,2]
[400024133,1767034240155,-201.01054617,0.0002356,2]
[400024134,1767034240165,-361.8189831,0.0002356,2]
[400024135,1767034240176,-643.23374773,0.0002356,2]
[400024136,1767034240185,-488.35200289,0.00023561,2]
[400024137,1767034240195,-500.0,0.00023561,2]
[400024138,1767034240204,-500.0,0.00023561,2]
[400024139,1767034240213,-500.0,0.00023561,2]
[400024140,1767034240223,-552.91811867,0.00023561,2]
[400024141,1767034240233,-939.52,0.00023561,2]
[400024142,1767034240243,-500.0,0.00023561,2]
[400024143,1767034240253,-5143.59,0.00023561,2]
[400024144,1767034240263,-500.0,0.00023561,2]
[400024145,1767034240273,-500.0,0.00023561,2]
[400024146,1767034240283,-973.05,0.00023561,2]
[400024147,1767034240293,-895.41,0.00023561,2]
[400024148,1767034240309,-500.0,0.00023561,2]
[400024149,1767034240319,-500.0,0.00023561,2]
[400024150,1767034240329,-500.0,0.00023561,2]
[400024151,1767034240339,-500.0,0.00023561,2]
[400024152,1767034240349,-625.33,0.00023561,2]
[400024153,1767034240358,-1043.74,0.00023561,2]
[400024154,1767034240368,-1152.39,0.00023561,2]
[400024155,1767034240377,-2044.9530247,0.00023572,2]
[400024156,1767034240386,-151.0,0.000237,8]
[400024157,1767034240396,-500.0,0.00023733,2]
[400024158,1767034240406,-800.0,0.00023743,2]
[400024159,1767034240415,-490321.90312877,0.0002376,2]
[400024160,1767034240430,-407418.6785342,0.0002376,2]
[400024161,1767034240439,-870.77529542,0.00023789,2]
[400024162,1767034240448,-500.0,0.000238,2]
[400024163,1767034240588,-200.0,0.00023835,2]
[400024164,1767034240599,-200.0,0.00023835,2]
[400024165,1767034240608,-200.0,0.00023835,2]
[400024166,1767034240618,-200.0,0.00023835,2]
[400024167,1767034240627,-200.0,0.00023835,2]
[400024168,1767034240637,-200.0,0.00023835,2]
[400024169,1767034240646,-200.0,0.00023835,2]
[400024170,1767034240655,-200.0,0.00023835,2]
[400024171,1767034240664,-500.0,0.00023835,2]
[400024172,1767034240674,-500.0,0.00023835,2]
[400024173,1767034240683,-500.0,0.00023835,2]
[400024174,1767034240693,-552.91811867,0.00023835,2]
[400024175,1767034240703,-939.52,0.00023835,2]
[400024176,1767034240712,-500.0,0.00023835,2]
[400024177,1767034240721,-5143.59,0.00023835,2]
[400024178,1767034240731,-500.0,0.00023835,2]
[400024179,1767034240740,-500.0,0.00023835,2]
[400024180,1767034240749,-973.05,0.00023835,2]
[400024181,1767034240759,-895.41,0.00023835,2]
[400024182,1767034240769,-500.0,0.00023835,2]
[400024183,1767034240780,-500.0,0.00023835,2]
[400024184,1767034240793,-498.10670326,0.00023835,2]
[400024185,1767034240803,-500.0,0.00023835,2]
[400024186,1767034240813,-625.33,0.00023835,2]
[400024187,1767034240823,-1043.74,0.00023835,2]
[400024188,1767034240834,-1152.39,0.00023835,2]
[400024189,1767034240844,-151.0,0.00023852,2]
[400024190,1767034240854,-151.0,0.00023852,2]
[400024191,1767034240863,-151.0,0.00023852,2]
[400024192,1767034240872,-151.0,0.00023852,2]
[400024193,1767034240882,-151.0,0.00023852,2]
[400024194,1767034240892,-1362.0,0.00023852,2]
[400024195,1767034240902,-633.0,0.00023852,2]
[400024196,1767034240912,-2160.0,0.00023852,2]
[400024197,1767034240922,-416.0,0.00023852,2]